[Event "November 21 Early 2023"]
[Site "https://www.chess.com"]
[Date "2023.11.21"]
[Round "3"]
[White "Goryachkina, Aleksandra"]
[Black "LangesNasenhaar"]
[Result "1-0"]
[Board "125"]
[TimeControl "180+1"]
[WhiteFideId "4147103"]
[WhiteElo "2475"]
[BlackElo "2434"]
[WhiteTeam "FID"]
[WhiteClock "0:00:11"]
[BlackClock "0:00:06"]

1. e4 {[%clk 0:02:59]}  Nc6 {[%clk 0:02:52]} 2. d4 {[%clk 0:02:57]}  d5 {[%clk 0:02:51]} 3. e5 {[%clk 0:02:57]}  Bf5 {[%clk 0:02:49]} 4. Nf3 {[%clk 0:02:53]}  e6 {[%clk 0:02:48]} 5. Bd3 {[%clk 0:02:52]}  Nge7 {[%clk 0:02:46]} 6. O-O {[%clk 0:02:52]}  Qd7 {[%clk 0:02:44]} 7. c3 {[%clk 0:02:51]}  f6 {[%clk 0:02:44]} 8. Re1 {[%clk 0:02:42]}  O-O-O {[%clk 0:02:42]} 9. Bb5 {[%clk 0:02:24]}  Kb8 {[%clk 0:02:24]} 10. Nbd2 {[%clk 0:02:24]}  Ng6 {[%clk 0:02:02]} 11. b4 {[%clk 0:02:16]}  fxe5 {[%clk 0:01:57]} 12. dxe5 {[%clk 0:02:12]}  a6 {[%clk 0:01:16]} 13. Ba4 {[%clk 0:02:12]}  b5 {[%clk 0:01:13]} 14. Bc2 {[%clk 0:02:05]}  Bxc2 {[%clk 0:01:09]} 15. Qxc2 {[%clk 0:02:06]}  d4 {[%clk 0:01:09]} 16. a4 {[%clk 0:01:32]}  dxc3 {[%clk 0:01:06]} 17. axb5 {[%clk 0:01:12]}  cxd2 {[%clk 0:01:01]} 18. Bxd2 {[%clk 0:01:12]}  Nxb4 {[%clk 0:00:48]} 19. Bxb4 {[%clk 0:00:51]}  Bxb4 {[%clk 0:00:47]} 20. Reb1 {[%clk 0:00:51]}  a5 {[%clk 0:00:40]} 21. Rxb4 {[%clk 0:00:18]}  axb4 {[%clk 0:00:37]} 22. Qa4 {[%clk 0:00:18]}  Qd5 {[%clk 0:00:36]} 23. Nd4 {[%clk 0:00:18]}  Kc8 {[%clk 0:00:22]} 24. Nc6 {[%clk 0:00:12]}  Nxe5 {[%clk 0:00:19]} 25. Ne7+ {[%clk 0:00:11]}  Kd7 {[%clk 0:00:16]} 26. Nxd5 {[%clk 0:00:12]}  exd5 {[%clk 0:00:17]} 27. Qxb4 {[%clk 0:00:12]}  Nc4 {[%clk 0:00:15]} 28. h3 {[%clk 0:00:12]}  Rhe8 {[%clk 0:00:14]} 29. Rd1 {[%clk 0:00:12]}  Nb6 {[%clk 0:00:14]} 30. Qd4 {[%clk 0:00:12]}  Re7 {[%clk 0:00:12]} 31. Qh4 {[%clk 0:00:12]}  Kd6 {[%clk 0:00:12]} 32. Qxh7 {[%clk 0:00:11]}  Rde8 {[%clk 0:00:11]} 33. Qg6+ {[%clk 0:00:11]}  Kc5 {[%clk 0:00:09]} 34. Qc6+ {[%clk 0:00:10]}  Kb4 {[%clk 0:00:07]} 35. Rb1+ {[%clk 0:00:10]}  Ka5 {[%clk 0:00:06]} 36. Qc3+ {[%clk 0:00:10]}  Ka4 {[%clk 0:00:06]} 37. Qa1# {[%clk 0:00:11]} 1-0

[Event "November 21 Early 2023"]
[Site "https://www.chess.com"]
[Date "2023.11.21"]
[Round "3"]
[White "Gontcharov, Vladislav"]
[Black "Kuznetsova, Olga"]
[Result "0-1"]
[Board "127"]
[TimeControl "180+1"]
[WhiteFideId "4123492"]
[BlackFideId "4191323"]
[WhiteElo "2420"]
[BlackElo "2134"]
[WhiteTeam "RUS"]
[BlackTeam "RUS"]
[WhiteClock "0:00:05"]
[BlackClock "0:00:14"]

1. d4 {[%clk 0:03:00]}  Nf6 {[%clk 0:02:57]} 2. c4 {[%clk 0:03:00]}  e6 {[%clk 0:02:57]} 3. Nf3 {[%clk 0:02:59]}  d5 {[%clk 0:02:56]} 4. Nc3 {[%clk 0:02:57]}  Be7 {[%clk 0:02:52]} 5. Bg5 {[%clk 0:02:57]}  Ne4 {[%clk 0:02:52]} 6. Bxe7 {[%clk 0:02:56]}  Qxe7 {[%clk 0:02:52]} 7. Rc1 {[%clk 0:02:48]}  c6 {[%clk 0:02:51]} 8. e3 {[%clk 0:02:47]}  O-O {[%clk 0:02:50]} 9. Bd3 {[%clk 0:02:41]}  f5 {[%clk 0:02:50]} 10. O-O {[%clk 0:02:36]}  Bd7 {[%clk 0:02:47]} 11. Ne5 {[%clk 0:02:32]}  Be8 {[%clk 0:02:47]} 12. f3 {[%clk 0:02:29]}  Nxc3 {[%clk 0:02:45]} 13. Rxc3 {[%clk 0:02:28]}  Nd7 {[%clk 0:02:45]} 14. f4 {[%clk 0:02:22]}  Nxe5 {[%clk 0:02:22]} 15. fxe5 {[%clk 0:02:22]}  Rd8 {[%clk 0:02:20]} 16. Qc2 {[%clk 0:02:15]}  Bg6 {[%clk 0:02:16]} 17. cxd5 {[%clk 0:02:14]}  exd5 {[%clk 0:02:07]} 18. Bxf5 {[%clk 0:01:56]}  Qg5 {[%clk 0:00:53]} 19. Bxg6 {[%clk 0:01:38]}  Rxf1+ {[%clk 0:00:53]} 20. Kxf1 {[%clk 0:01:37]}  Rf8+ {[%clk 0:00:53]} 21. Kg1 {[%clk 0:01:37]}  hxg6 {[%clk 0:00:51]} 22. Qe2 {[%clk 0:01:33]}  Qf5 {[%clk 0:00:45]} 23. Rc1 {[%clk 0:01:32]}  Qe4 {[%clk 0:00:45]} 24. a3 {[%clk 0:01:25]}  a5 {[%clk 0:00:42]} 25. h3 {[%clk 0:01:21]}  a4 {[%clk 0:00:42]} 26. Rf1 {[%clk 0:01:21]}  Rf5 {[%clk 0:00:41]} 27. Rxf5 {[%clk 0:01:05]}  gxf5 {[%clk 0:00:42]} 28. Qf3 {[%clk 0:01:05]}  Qc2 {[%clk 0:00:38]} 29. Qf4 {[%clk 0:01:02]}  Qxb2 {[%clk 0:00:24]} 30. e6 {[%clk 0:00:56]}  Qxa3 {[%clk 0:00:24]} 31. Qe5 {[%clk 0:00:55]}  Qe7 {[%clk 0:00:23]} 32. Qxf5 {[%clk 0:00:55]}  a3 {[%clk 0:00:23]} 33. Qb1 {[%clk 0:00:42]}  Qxe6 {[%clk 0:00:22]} 34. Qxb7 {[%clk 0:00:42]}  Qxe3+ {[%clk 0:00:22]} 35. Kh2 {[%clk 0:00:41]}  Qf4+ {[%clk 0:00:21]} 36. Kh1 {[%clk 0:00:40]}  Qc1+ {[%clk 0:00:14]} 37. Kh2 {[%clk 0:00:39]}  Kh7 {[%clk 0:00:15]} 38. Qf7 {[%clk 0:00:35]}  Qg5 {[%clk 0:00:14]} 39. Qa7 {[%clk 0:00:33]}  Qf4+ {[%clk 0:00:13]} 40. Kh1 {[%clk 0:00:32]}  Qc1+ {[%clk 0:00:13]} 41. Kh2 {[%clk 0:00:32]}  Qb2 {[%clk 0:00:14]} 42. Qf7 {[%clk 0:00:30]}  Qb8+ {[%clk 0:00:14]} 43. Kh1 {[%clk 0:00:28]}  a2 {[%clk 0:00:14]} 44. Qf5+ {[%clk 0:00:20]}  Kh8 {[%clk 0:00:14]} 45. Qh5+ {[%clk 0:00:05]}  Kg8 {[%clk 0:00:14]} 0-1

[Event "November 21 Early 2023"]
[Site "https://www.chess.com"]
[Date "2023.11.21"]
[Round "3"]
[White "Maltsevskaya, Aleksandra"]
[Black "szachmistrz2500"]
[Result "0-1"]
[Board "128"]
[TimeControl "180+1"]
[WhiteFideId "24174041"]
[WhiteElo "2296"]
[BlackElo "2431"]
[WhiteTeam "POL"]
[WhiteClock "0:00:05"]
[BlackClock "0:01:23"]

1. e4 {[%clk 0:02:59]}  c5 {[%clk 0:02:32]} 2. Nf3 {[%clk 0:02:57]}  d6 {[%clk 0:02:32]} 3. d4 {[%clk 0:02:57]}  cxd4 {[%clk 0:02:33]} 4. Nxd4 {[%clk 0:02:57]}  Nf6 {[%clk 0:02:33]} 5. Nc3 {[%clk 0:02:56]}  a6 {[%clk 0:02:34]} 6. h3 {[%clk 0:02:55]}  e5 {[%clk 0:02:34]} 7. Nb3 {[%clk 0:02:53]}  Be6 {[%clk 0:02:33]} 8. g4 {[%clk 0:02:46]}  h6 {[%clk 0:02:33]} 9. Bg2 {[%clk 0:02:46]}  Nbd7 {[%clk 0:02:33]} 10. O-O {[%clk 0:02:40]}  Be7 {[%clk 0:02:33]} 11. Be3 {[%clk 0:02:33]}  Rc8 {[%clk 0:02:32]} 12. Nd5 {[%clk 0:02:05]}  Bxd5 {[%clk 0:02:29]} 13. exd5 {[%clk 0:02:06]}  Nb6 {[%clk 0:02:29]} 14. Na5 {[%clk 0:01:51]}  Qc7 {[%clk 0:02:24]} 15. Rc1 {[%clk 0:01:33]}  Na4 {[%clk 0:02:14]} 16. Qd2 {[%clk 0:01:26]}  Nxb2 {[%clk 0:02:12]} 17. c4 {[%clk 0:01:24]}  Na4 {[%clk 0:02:10]} 18. Qb4 {[%clk 0:01:21]}  Nc5 {[%clk 0:02:07]} 19. Bxc5 {[%clk 0:01:13]}  Qxc5 {[%clk 0:02:05]} 20. Qxb7 {[%clk 0:01:06]}  Qc7 {[%clk 0:01:39]} 21. Qxc7 {[%clk 0:00:33]}  Rxc7 {[%clk 0:01:38]} 22. Nc6 {[%clk 0:00:30]}  Nd7 {[%clk 0:01:30]} 23. Rb1 {[%clk 0:00:25]}  Bg5 {[%clk 0:01:30]} 24. Rfd1 {[%clk 0:00:14]}  O-O {[%clk 0:01:29]} 25. Rb3 {[%clk 0:00:09]}  f5 {[%clk 0:01:28]} 26. gxf5 {[%clk 0:00:08]}  Rxf5 {[%clk 0:01:28]} 27. Be4 {[%clk 0:00:08]}  Rf8 {[%clk 0:01:26]} 28. Rdb1 {[%clk 0:00:08]}  Bh4 {[%clk 0:01:26]} 29. f3 {[%clk 0:00:06]}  Nc5 {[%clk 0:01:27]} 30. Rb8 {[%clk 0:00:06]}  Nxe4 {[%clk 0:01:25]} 31. Rxf8+ {[%clk 0:00:06]}  Kxf8 {[%clk 0:01:26]} 32. fxe4 {[%clk 0:00:07]}  Bg5 {[%clk 0:01:24]} 33. Rb8+ {[%clk 0:00:08]}  Kf7 {[%clk 0:01:23]} 34. Rb6 {[%clk 0:00:05]}  Be3+ {[%clk 0:01:23]} 0-1

[Event "November 21 Early 2023"]
[Site "https://www.chess.com"]
[Date "2023.11.21"]
[Round "3"]
[White "Gutkin, Ilya"]
[Black "Hilary46"]
[Result "0-1"]
[Board "132"]
[TimeControl "180+1"]
[WhiteFideId "16203470"]
[WhiteElo "2248"]
[BlackElo "2597"]
[WhiteTeam "GER"]
[WhiteClock "0:00:00"]
[BlackClock "0:00:09"]

1. e4 {[%clk 0:03:00]}  e5 {[%clk 0:03:00]} 2. Nf3 {[%clk 0:03:00]}  Nc6 {[%clk 0:03:01]} 3. Bb5 {[%clk 0:02:58]}  a6 {[%clk 0:03:01]} 4. Ba4 {[%clk 0:02:56]}  Nf6 {[%clk 0:03:02]} 5. O-O {[%clk 0:02:55]}  Nxe4 {[%clk 0:03:02]} 6. Re1 {[%clk 0:02:54]}  Nc5 {[%clk 0:03:01]} 7. Bxc6 {[%clk 0:02:53]}  dxc6 {[%clk 0:03:02]} 8. Nxe5 {[%clk 0:02:52]}  Be7 {[%clk 0:03:03]} 9. d4 {[%clk 0:02:51]}  Ne6 {[%clk 0:03:03]} 10. c3 {[%clk 0:02:50]}  O-O {[%clk 0:03:04]} 11. Nd2 {[%clk 0:02:47]}  c5 {[%clk 0:03:04]} 12. dxc5 {[%clk 0:02:41]}  Nxc5 {[%clk 0:03:00]} 13. Nb3 {[%clk 0:02:41]}  Qxd1 {[%clk 0:02:56]} 14. Rxd1 {[%clk 0:02:41]}  Nxb3 {[%clk 0:02:56]} 15. axb3 {[%clk 0:02:41]}  f6 {[%clk 0:02:14]} 16. Nc4 {[%clk 0:02:38]}  Be6 {[%clk 0:02:11]} 17. Bf4 {[%clk 0:02:37]}  Rac8 {[%clk 0:01:59]} 18. Na5 {[%clk 0:02:27]}  Rfe8 {[%clk 0:01:29]} 19. Nxb7 {[%clk 0:02:20]}  Bxb3 {[%clk 0:01:28]} 20. Rd7 {[%clk 0:02:19]}  Bd8 {[%clk 0:00:38]} 21. h4 {[%clk 0:01:40]}  Be6 {[%clk 0:00:35]} 22. Rxd8 {[%clk 0:01:39]}  Rexd8 {[%clk 0:00:34]} 23. Nxd8 {[%clk 0:01:40]}  Rxd8 {[%clk 0:00:34]} 24. Rxa6 {[%clk 0:01:39]}  Bb3 {[%clk 0:00:24]} 25. Rc6 {[%clk 0:01:16]}  Rd1+ {[%clk 0:00:20]} 26. Kh2 {[%clk 0:01:15]}  Rb1 {[%clk 0:00:21]} 27. Rxc7 {[%clk 0:01:14]}  Rxb2 {[%clk 0:00:22]} 28. Rb7 {[%clk 0:00:37]}  Rb1 {[%clk 0:00:22]} 29. Bd6 {[%clk 0:00:20]}  Ba2 {[%clk 0:00:21]} 30. Ra7 {[%clk 0:00:19]}  Bd5 {[%clk 0:00:21]} 31. Rc7 {[%clk 0:00:19]}  Rb2 {[%clk 0:00:18]} 32. Bc5 {[%clk 0:00:17]}  Rc2 {[%clk 0:00:17]} 33. Bd4 {[%clk 0:00:17]}  h6 {[%clk 0:00:16]} 34. Kg3 {[%clk 0:00:16]}  Rc1 {[%clk 0:00:15]} 35. f3 {[%clk 0:00:15]}  Rc2 {[%clk 0:00:15]} 36. Kh3 {[%clk 0:00:14]}  Be6+ {[%clk 0:00:15]} 37. Kg3 {[%clk 0:00:13]}  Bd5 {[%clk 0:00:16]} 38. Rd7 {[%clk 0:00:13]}  Be6 {[%clk 0:00:17]} 39. Rd6 {[%clk 0:00:13]}  Bf7 {[%clk 0:00:17]} 40. Rb6 {[%clk 0:00:13]}  Bc4 {[%clk 0:00:17]} 41. Rc6 {[%clk 0:00:13]}  Bf1 {[%clk 0:00:17]} 42. Kf4 {[%clk 0:00:12]}  Bxg2 {[%clk 0:00:17]} 43. c4 {[%clk 0:00:11]}  Rc1 {[%clk 0:00:16]} 44. Kg3 {[%clk 0:00:10]}  Bf1 {[%clk 0:00:15]} 45. c5 {[%clk 0:00:11]}  Bb5 {[%clk 0:00:15]} 46. Rc7 {[%clk 0:00:11]}  Ba4 {[%clk 0:00:15]} 47. Kf4 {[%clk 0:00:11]}  Bb5 {[%clk 0:00:14]} 48. Ke4 {[%clk 0:00:12]}  Ba4 {[%clk 0:00:12]} 49. Kd5 {[%clk 0:00:12]}  Bb3+ {[%clk 0:00:12]} 50. Kd6 {[%clk 0:00:12]}  Bd1 {[%clk 0:00:13]} 51. c6 {[%clk 0:00:12]}  Bxf3 {[%clk 0:00:13]} 52. Rc8+ {[%clk 0:00:12]}  Kh7 {[%clk 0:00:13]} 53. c7 {[%clk 0:00:13]}  Bg4 {[%clk 0:00:14]} 54. Rd8 {[%clk 0:00:13]}  Kg6 {[%clk 0:00:11]} 55. Bc5 {[%clk 0:00:13]}  h5 {[%clk 0:00:10]} 56. c8=Q {[%clk 0:00:13]}  Bxc8 {[%clk 0:00:11]} 57. Rxc8 {[%clk 0:00:13]}  Rc4 {[%clk 0:00:11]} 58. Rg8 {[%clk 0:00:12]}  Rxh4 {[%clk 0:00:11]} 59. Kd5 {[%clk 0:00:12]}  Kf7 {[%clk 0:00:09]} 60. Ra8 {[%clk 0:00:11]}  g5 {[%clk 0:00:08]} 61. Ra6 {[%clk 0:00:10]}  Kg6 {[%clk 0:00:09]} 62. Bd4 {[%clk 0:00:11]}  Rf4 {[%clk 0:00:09]} 63. Be5 {[%clk 0:00:10]}  Rf5 {[%clk 0:00:09]} 64. Kd4 {[%clk 0:00:00]}  Rxe5 {[%clk 0:00:09]} 0-1

[Event "November 21 Early 2023"]
[Site "https://www.chess.com"]
[Date "2023.11.21"]
[Round "3"]
[White "FoxOnTheRun97"]
[Black "Osinovsky, Stepan"]
[Result "0-1"]
[Board "133"]
[TimeControl "180+1"]
[BlackFideId "4157354"]
[WhiteElo "2594"]
[BlackElo "2222"]
[BlackTeam "RUS"]
[WhiteClock "0:00:04"]
[BlackClock "0:00:08"]

1. d4 {[%clk 0:02:59]}  Nf6 {[%clk 0:02:58]} 2. Bg5 {[%clk 0:02:58]}  g6 {[%clk 0:02:59]} 3. Bxf6 {[%clk 0:02:58]}  exf6 {[%clk 0:03:00]} 4. e3 {[%clk 0:02:58]}  Bg7 {[%clk 0:03:00]} 5. g3 {[%clk 0:02:59]}  O-O {[%clk 0:03:01]} 6. Bg2 {[%clk 0:03:00]}  d6 {[%clk 0:02:54]} 7. Ne2 {[%clk 0:03:00]}  f5 {[%clk 0:02:54]} 8. O-O {[%clk 0:03:00]}  h5 {[%clk 0:02:53]} 9. h4 {[%clk 0:02:59]}  Nd7 {[%clk 0:02:53]} 10. c4 {[%clk 0:02:56]}  Nf6 {[%clk 0:02:53]} 11. Nf4 {[%clk 0:02:56]}  Ng4 {[%clk 0:02:53]} 12. Nc3 {[%clk 0:02:54]}  Re8 {[%clk 0:02:52]} 13. Re1 {[%clk 0:02:53]}  a5 {[%clk 0:02:33]} 14. a3 {[%clk 0:02:31]}  Ra6 {[%clk 0:02:04]} 15. b4 {[%clk 0:02:26]}  b6 {[%clk 0:02:03]} 16. Qd3 {[%clk 0:01:59]}  Bf6 {[%clk 0:01:18]} 17. Bc6 {[%clk 0:01:50]}  Rf8 {[%clk 0:01:10]} 18. Bd5 {[%clk 0:01:46]}  Kg7 {[%clk 0:01:07]} 19. Kg2 {[%clk 0:01:14]}  Bxh4 {[%clk 0:01:02]} 20. f3 {[%clk 0:01:06]}  axb4 {[%clk 0:00:46]} 21. axb4 {[%clk 0:01:02]}  Rxa1 {[%clk 0:00:46]} 22. Rxa1 {[%clk 0:01:02]}  Nxe3+ {[%clk 0:00:47]} 23. Qxe3 {[%clk 0:00:58]}  Bxg3 {[%clk 0:00:20]} 24. Kxg3 {[%clk 0:00:37]}  Re8 {[%clk 0:00:20]} 25. Qd2 {[%clk 0:00:27]}  Qg5+ {[%clk 0:00:17]} 26. Kh2 {[%clk 0:00:21]}  Qh4+ {[%clk 0:00:14]} 27. Kg2 {[%clk 0:00:14]}  Qg5+ {[%clk 0:00:10]} 28. Kh3 {[%clk 0:00:13]}  h4 {[%clk 0:00:09]} 29. Nce2 {[%clk 0:00:05]}  Rxe2 {[%clk 0:00:08]} 30. Qxe2 {[%clk 0:00:04]}  Qg3# {[%clk 0:00:08]} 0-1

[Event "November 21 Early 2023"]
[Site "https://www.chess.com"]
[Date "2023.11.21"]
[Round "3"]
[White "Manukian, Artak"]
[Black "Srebrnic, Marko"]
[Result "1/2-1/2"]
[Board "134"]
[TimeControl "180+1"]
[WhiteFideId "13301373"]
[BlackFideId "14603616"]
[WhiteElo "2030"]
[BlackElo "2322"]
[WhiteTeam "ARM"]
[BlackTeam "SLO"]
[WhiteClock "0:00:08"]
[BlackClock "0:00:10"]

1. e4 {[%clk 0:02:38]}  c6 {[%clk 0:02:58]} 2. d4 {[%clk 0:02:37]}  g6 {[%clk 0:02:59]} 3. e5 {[%clk 0:02:38]}  d6 {[%clk 0:02:57]} 4. f4 {[%clk 0:02:38]}  dxe5 {[%clk 0:02:56]} 5. fxe5 {[%clk 0:02:39]}  Be6 {[%clk 0:02:49]} 6. Nf3 {[%clk 0:02:37]}  h6 {[%clk 0:02:50]} 7. c4 {[%clk 0:02:36]}  Bg7 {[%clk 0:02:46]} 8. Nc3 {[%clk 0:02:35]}  Bg4 {[%clk 0:02:44]} 9. Be3 {[%clk 0:02:31]}  c5 {[%clk 0:02:41]} 10. Qb3 {[%clk 0:02:13]}  Bxf3 {[%clk 0:02:34]} 11. gxf3 {[%clk 0:02:10]}  cxd4 {[%clk 0:02:34]} 12. O-O-O {[%clk 0:02:10]}  Qb6 {[%clk 0:02:23]} 13. Qxb6 {[%clk 0:02:05]}  axb6 {[%clk 0:02:24]} 14. Bxd4 {[%clk 0:02:03]}  Nc6 {[%clk 0:02:22]} 15. Nd5 {[%clk 0:01:58]}  Rxa2 {[%clk 0:02:13]} 16. Kb1 {[%clk 0:01:53]}  Nxd4 {[%clk 0:01:41]} 17. Rxd4 {[%clk 0:01:40]}  Bxe5 {[%clk 0:01:41]} 18. Nc7+ {[%clk 0:01:39]}  Bxc7 {[%clk 0:01:35]} 19. Kxa2 {[%clk 0:01:39]}  Nf6 {[%clk 0:01:31]} 20. Bg2 {[%clk 0:01:28]}  g5 {[%clk 0:01:28]} 21. h4 {[%clk 0:01:24]}  O-O {[%clk 0:01:16]} 22. hxg5 {[%clk 0:01:15]}  hxg5 {[%clk 0:01:17]} 23. b4 {[%clk 0:01:12]}  Bf4 {[%clk 0:01:08]} 24. Rhd1 {[%clk 0:01:06]}  Kg7 {[%clk 0:00:34]} 25. Rd8 {[%clk 0:01:01]}  Ne8 {[%clk 0:00:29]} 26. Kb3 {[%clk 0:00:53]}  Nd6 {[%clk 0:00:26]} 27. Rxf8 {[%clk 0:00:52]}  Kxf8 {[%clk 0:00:27]} 28. Ra1 {[%clk 0:00:49]}  Be3 {[%clk 0:00:24]} 29. Ra8+ {[%clk 0:00:47]}  Kg7 {[%clk 0:00:24]} 30. Kc3 {[%clk 0:00:40]}  f5 {[%clk 0:00:22]} 31. Kd3 {[%clk 0:00:40]}  Bg1 {[%clk 0:00:20]} 32. Rb8 {[%clk 0:00:32]}  Kf6 {[%clk 0:00:20]} 33. f4 {[%clk 0:00:29]}  g4 {[%clk 0:00:12]} 34. Bxb7 {[%clk 0:00:29]}  Nxb7 {[%clk 0:00:13]} 35. Rxb7 {[%clk 0:00:29]}  g3 {[%clk 0:00:11]} 36. Ke2 {[%clk 0:00:28]}  e5 {[%clk 0:00:11]} 37. fxe5+ {[%clk 0:00:27]}  Kxe5 {[%clk 0:00:12]} 38. Kf3 {[%clk 0:00:27]}  f4 {[%clk 0:00:10]} 39. Re7+ {[%clk 0:00:25]}  Kd4 {[%clk 0:00:10]} 40. Re4+ {[%clk 0:00:25]}  Kc3 {[%clk 0:00:08]} 41. b5 {[%clk 0:00:19]}  Be3 {[%clk 0:00:07]} 42. c5 {[%clk 0:00:15]}  Bxc5 {[%clk 0:00:07]} 43. Rxf4 {[%clk 0:00:14]}  Bf2 {[%clk 0:00:07]} 44. Kg2 {[%clk 0:00:12]}  Kd3 {[%clk 0:00:06]} 45. Ra4 {[%clk 0:00:10]}  Kc3 {[%clk 0:00:07]} 46. Rg4 {[%clk 0:00:10]}  Kd3 {[%clk 0:00:07]} 47. Kf3 {[%clk 0:00:10]}  Kc3 {[%clk 0:00:07]} 48. Ke4 {[%clk 0:00:10]}  Kd2 {[%clk 0:00:07]} 49. Kf3 {[%clk 0:00:09]}  Kd3 {[%clk 0:00:08]} 50. Kg2 {[%clk 0:00:09]}  Kc3 {[%clk 0:00:08]} 51. Re4 {[%clk 0:00:09]}  Kd3 {[%clk 0:00:08]} 52. Ra4 {[%clk 0:00:08]}  Kc3 {[%clk 0:00:09]} 53. Rg4 {[%clk 0:00:08]}  Kd3 {[%clk 0:00:09]} 54. Kf3 {[%clk 0:00:09]}  Kd2 {[%clk 0:00:09]} 55. Kg2 {[%clk 0:00:08]}  Kc3 {[%clk 0:00:10]} 56. Re4 {[%clk 0:00:08]}  Kd3 {[%clk 0:00:10]} 57. Rg4 {[%clk 0:00:08]}  Kc3 {[%clk 0:00:10]} 1/2-1/2

[Event "November 21 Early 2023"]
[Site "https://www.chess.com"]
[Date "2023.11.21"]
[Round "3"]
[White "Skatchkov, Valery"]
[Black "Miszler, Levente"]
[Result "0-1"]
[Board "136"]
[TimeControl "180+1"]
[WhiteFideId "24195812"]
[BlackFideId "763276"]
[WhiteElo "2320"]
[BlackElo "2186"]
[WhiteTeam "RUS"]
[BlackTeam "HUN"]
[WhiteClock "0:00:06"]
[BlackClock "0:00:06"]

1. d4 {[%clk 0:00:07]}  Nf6 {[%clk 0:02:40]} 2. c3 {[%clk 0:00:07]}  d5 {[%clk 0:02:39]} 3. Bf4 {[%clk 0:00:08]}  c5 {[%clk 0:02:40]} 4. e3 {[%clk 0:00:08]}  Nc6 {[%clk 0:02:40]} 5. Nd2 {[%clk 0:00:09]}  e6 {[%clk 0:02:41]} 6. Ngf3 {[%clk 0:00:09]}  Bd6 {[%clk 0:02:35]} 7. Bg3 {[%clk 0:00:08]}  h5 {[%clk 0:02:30]} 8. Bd3 {[%clk 0:00:08]}  b6 {[%clk 0:02:24]} 9. Qe2 {[%clk 0:00:08]}  Bb7 {[%clk 0:02:24]} 10. O-O {[%clk 0:00:07]}  Qc7 {[%clk 0:02:20]} 11. Bxd6 {[%clk 0:00:07]}  Qxd6 {[%clk 0:02:20]} 12. e4 {[%clk 0:00:07]}  dxe4 {[%clk 0:02:02]} 13. Nxe4 {[%clk 0:00:08]}  Nxe4 {[%clk 0:02:02]} 14. Bxe4 {[%clk 0:00:09]}  cxd4 {[%clk 0:01:59]} 15. cxd4 {[%clk 0:00:09]}  Rd8 {[%clk 0:01:41]} 16. d5 {[%clk 0:00:09]}  Na5 {[%clk 0:01:11]} 17. dxe6 {[%clk 0:00:06]}  Qxe6 {[%clk 0:01:12]} 18. Qb5+ {[%clk 0:00:06]}  Bc6 {[%clk 0:01:05]} 19. Bxc6+ {[%clk 0:00:06]}  Qxc6 {[%clk 0:01:06]} 20. Rfe1+ {[%clk 0:00:06]}  Kf8 {[%clk 0:01:07]} 21. Qg5 {[%clk 0:00:07]}  f6 {[%clk 0:00:41]} 22. Qg6 {[%clk 0:00:06]}  Rh6 {[%clk 0:00:42]} 23. Qf5 {[%clk 0:00:04]}  Qd5 {[%clk 0:00:36]} 24. Qf4 {[%clk 0:00:04]}  Rg6 {[%clk 0:00:28]} 25. Rac1 {[%clk 0:00:02]}  Nc6 {[%clk 0:00:26]} 26. Qc7 {[%clk 0:00:02]}  Ne5 {[%clk 0:00:22]} 27. Rxe5 {[%clk 0:00:01]}  fxe5 {[%clk 0:00:19]} 28. Kh1 {[%clk 0:00:01]}  Rd7 {[%clk 0:00:12]} 29. Qc2 {[%clk 0:00:02]}  Qd3 {[%clk 0:00:12]} 30. Qa4 {[%clk 0:00:02]}  e4 {[%clk 0:00:11]} 31. Qb4+ {[%clk 0:00:02]}  Kg8 {[%clk 0:00:11]} 32. Ng1 {[%clk 0:00:03]}  e3 {[%clk 0:00:07]} 33. fxe3 {[%clk 0:00:03]}  Qxe3 {[%clk 0:00:08]} 34. Rf1 {[%clk 0:00:03]}  Qe4 {[%clk 0:00:06]} 35. Qb3+ {[%clk 0:00:04]}  Kh7 {[%clk 0:00:06]} 36. Qh3 {[%clk 0:00:04]}  Qg4 {[%clk 0:00:05]} 37. Qxg4 {[%clk 0:00:04]}  Rxg4 {[%clk 0:00:05]} 38. Rf5 {[%clk 0:00:05]}  Rd2 {[%clk 0:00:04]} 39. g3 {[%clk 0:00:05]}  g6 {[%clk 0:00:04]} 40. Rf7+ {[%clk 0:00:05]}  Kh6 {[%clk 0:00:04]} 41. Rxa7 {[%clk 0:00:06]}  Re4 {[%clk 0:00:05]} 42. Nf3 {[%clk 0:00:06]}  Rd3 {[%clk 0:00:03]} 43. Rf7 {[%clk 0:00:05]}  Re2 {[%clk 0:00:03]} 44. Rf6 {[%clk 0:00:03]}  Rd1+ {[%clk 0:00:03]} 45. Ng1 {[%clk 0:00:04]}  Ree1 {[%clk 0:00:03]} 46. Kg2 {[%clk 0:00:04]}  Rxg1+ {[%clk 0:00:03]} 47. Kh3 {[%clk 0:00:05]}  Rgf1 {[%clk 0:00:04]} 48. Rxb6 {[%clk 0:00:06]}  Rd2 {[%clk 0:00:04]} 49. b4 {[%clk 0:00:05]}  Rff2 {[%clk 0:00:05]} 50. g4 {[%clk 0:00:06]}  Rxh2+ {[%clk 0:00:05]} 51. Kg3 {[%clk 0:00:07]}  Rdg2+ {[%clk 0:00:05]} 52. Kf3 {[%clk 0:00:07]}  Rxg4 {[%clk 0:00:06]} 53. a4 {[%clk 0:00:06]}  Rh3+ {[%clk 0:00:06]} 54. Kf2 {[%clk 0:00:07]}  Rb3 {[%clk 0:00:07]} 55. a5 {[%clk 0:00:07]}  Rgxb4 {[%clk 0:00:07]} 56. Rc6 {[%clk 0:00:08]}  Ra4 {[%clk 0:00:06]} 57. a6 {[%clk 0:00:09]}  Ra2+ {[%clk 0:00:06]} 58. Ke1 {[%clk 0:00:06]}  Rb1+ {[%clk 0:00:06]} 0-1